[Event "Ceske Budejovice GM 2022"]
[Site "Ceske Budejovice"]
[Date "2022.07.08"]
[Round "8.2"]
[White "Omelja, Artem"]
[Black "Malinovsky, Karel"]
[Result "1/2-1/2"]
[ECO "D31"]
[WhiteElo "2478"]
[BlackElo "2463"]
[Annotator "RC"]
[PlyCount "73"]
[EventDate "2022.07.01"]
[EventType "tourn"]
[EventCountry "CZE"]
[SourceTitle "playchess.com"]
[Source "ChessBase"]
[SourceQuality "1"]
[TimeControl "40/5400+30:1800+30"]

1. c4 {[%emt 0:00:03]} e6 {[%emt 0:00:07]} 2. Nc3 {[%emt 0:00:13]} d5 {[%emt 0:00:06]} 3. d4 {[%emt 0:00:12]} Be7 {[%emt 0:00:06]} 4. cxd5 {[%emt 0:01:29]} exd5 {[%emt 0:00:07]} 5. Bf4 {[%emt 0:00:09]} Nf6 {[%emt 0:00:18]} 6. e3 {[%emt 0:00:23]} Bf5 {[%emt 0:00:20]} 7. Nge2 {[%emt 0:04:14]} c6 {[%emt 0:00:30]} 8. Ng3 {[%emt 0:00:27]} Bg6 {[%emt 0:00:09]} 9. h4 {[%emt 0:01:22]} h5 {[%emt 0:00:39]} 10. Be2 {[%emt 0:01:55]} Nbd7 {[%emt 0:01:09]} 11. a3 {[%emt 0:01:25]} Kf8 {[%emt 0:04:46]} 12. Kf1 {[%emt 0:20:06]} Nb6 {[%emt 0:04:52]} 13. Bd3 {[%emt 0:08:06]} Bxd3+ {[%emt 0:09:56]} 14. Qxd3 {[%emt 0:00:06]} g6 {[%emt 0:00:22]} 15. Nge2 {[%emt 0:00:24]} Qd7 {[%emt 0:04:36]} 16. b3 {[%emt 0:00:57]} Re8 {[%emt 0:03:15]} 17. g3 {[%emt 0:00:16]} Nc8 {[%emt 0:03:27]} 18. Kg2 {[%emt 0:00:08]} Bd6 {[%emt 0:01:59]} 19. a4 {[%emt 0:02:13]} Bxf4 {[%emt 0:02:15]} 20. Nxf4 {[%emt 0:00:06]} Nd6 {[%emt 0:00:09]} 21. Ra2 {[%emt 0:02:56]} Kg7 {[%emt 0:05:17]} 22. Re2 {[%emt 0:00:15]} Re7 {[%emt 0:01:40]} 23. Rhe1 {[%emt 0:01:19]} Rd8 {[%emt 0:07:54]} 24. Nd1 {[%emt 0:02:36]} Nf5 {[%emt 0:07:56]} 25. f3 {[%emt 0:00:18]} Qc7 {[%emt 0:03:16]} 26. Qc3 {[%emt 0:01:30]} Kh7 {[%emt 0:06:07]} 27. Nf2 {[%emt 0:00:27]} Ne8 {[%emt 0:07:40]} 28. N2h3 {[%emt 0:00:27]} f6 {[%emt 0:00:47]} 29. e4 {[%emt 0:05:28]} dxe4 {[%emt 0:02:53]} 30. Rxe4 {[%emt 0:00:05]} Neg7 {[%emt 0:08:57]} 31. Rxe7 {[%emt 0:02:48]} Nxe7 {[%emt 0:00:02]} 32. d5 {[%emt 0:01:18]} Nxd5 {[%emt 0:05:07]} 33. Nxd5 {[%emt 0:00:12]} Rxd5 {[%emt 0:00:06]} 34. Qxf6 {[%emt 0:00:17]} Rd2+ {[%emt 0:00:32]} 35. Kf1 {[%emt 0:05:00]} Qxg3 {[%emt 0:01:05]} 36. Ng5+ {[%emt 0:00:19]} Kh6 {[%emt 0:00:07]} 37. Nf7+ {[%emt 0:00:29]} 1/2-1/2

[Event "Ceske Budejovice GM 2022"]
[Site "Ceske Budejovice"]
[Date "2022.07.08"]
[Round "8.3"]
[White "Kraus, Tomas"]
[Black "Donchenko, Alexander"]
[Result "*"]
[WhiteElo "2488"]
[BlackElo "2640"]
[Annotator "TA"]
[PlyCount "45"]
[EventDate "2022.07.01"]
[EventType "tourn"]
[EventCountry "CZE"]
[SourceTitle "playchess.com"]
[Source "ChessBase"]
[SourceQuality "1"]
[TimeControl "40/5400+30:1800+30"]

{[%evp 10,45,7,12,30,17,22,22,14,15,18,24,12,20,14,17,24,14,57,53,41,31,34,7,41,45,41,26,49,50,63,-43,-37,-79,0,-21,-22,-8]} 1. e4 {[%emt 0:00:03]} c5 {[%emt 0:00:09]} 2. Nf3 {[%emt 0:00:11]} d6 {[%emt 0:00:33]} 3. Bb5+ {[%emt 0:00:31]} Nd7 {[%emt 0:03:40]} 4. d4 {[%emt 0:00:09]} cxd4 {[%emt 0:00:11]} 5. Qxd4 {[%emt 0:00:05]} a6 {[%emt 0:02:41]} 6. Bxd7+ {[%emt 0:00:23]} Qxd7 {[%emt 0:00:07] B51: Sicilian: Moscow Variation (3 Bb5+) without 3...Bd7.} 7. O-O {[%emt 0:09:25]} e5 {[%emt 0:02:44]} 8. Qd3 {[%emt 0:03:03]} Qc6 {[%emt 0:01:42]} 9. c4 {[%emt 0:08:46]} Be6 {[%emt 0:02:37]} 10. b3 {[%emt 0:02:17]} b5 {[%emt 0:01:43]} 11. cxb5 {[%emt 0:01:21]} Qxb5 {[%emt 0:01:13]} 12. Rd1 {[%emt 0:06:41][%cal Bf1d1,Bd1d3,Bd3e3][%mdl 32] [#]} Qxd3 $146 {[%emt 0:09:44]} ({Predecessor:} 12... Nf6 13. Nc3 Qxd3 14. Rxd3 Rc8 15. Ba3 d5 16. Bxf8 Kxf8 17. Nxe5 dxe4 18. Re3 Rc5 {0-1 (55) Erdogmus,Y (1955)-Cheparinov,I (2667) Tornelo INT 2021}) 13. Rxd3 {[%emt 0:00:03]} f5 {[%emt 0:00:12]} 14. exf5 {[%emt 0:07:42]} Bxf5 {[%emt 0:00:32]} 15. Re3 {[%emt 0:00:59]} Nf6 {[%emt 0:04:59]} 16. Ba3 {[%emt 0:05:20]} (16. Nc3 $5 {[%cal Rf3e5]}) 16... Rc8 {[%emt 0:26:57]} (16... Nd5 $5 17. Re1 Be7 $11) 17. Nbd2 {[%emt 0:03:08][%cal Of3e5]} Be6 {[%emt 0:03:33]} 18. Ng5 {[%emt 0:14:00]} Bd5 {[%emt 0:02:52]} 19. f4 {[%emt 0:05:16]} Be7 {[%emt 0:10:07]} 20. Nge4 {[%emt 0:08:32]} ({Much worse is} 20. fxe5 Ng4 21. exd6 (21. Rd3 Bxg5 22. Rxd5 Be3+ 23. Kf1 O-O+ 24. Ke1 Rf2 $17) 21... Nxe3 $17) (20. Re2 $14) 20... Rc2 $15 {[%emt 0:02:22] Threatens to win with ...Nxe4.} 21. Rd1 {[%emt 0:02:26]} O-O {[%emt 0:10:24]} ({Of course not} 21... Rxa2 22. Nxd6+ Kd7 23. fxe5 Rxa3 24. exf6 Bxd6 25. Ne4 $11) ({Better is} 21... exf4 $17 22. Nxf6+ gxf6) 22. fxe5 {[%emt 0:04:02]} Nxe4 {[%emt 0:05:34]} ({Don't take} 22... Ng4 23. Rc3 Rxa2 24. Bxd6 Bxe4 25. Nxe4 $14) 23. Nxe4 {[%emt 0:00:21] Weighted Error Value: White=0.18 (very precise) /Black=0.12 (very precise)} *

[Event "Ceske Budejovice GM 2022"]
[Site "Ceske Budejovice"]
[Date "2022.07.08"]
[Round "8.5"]
[White "Morgunov, Marc"]
[Black "Vykouk, Jan"]
[Result "1/2-1/2"]
[ECO "C08"]
[WhiteElo "2376"]
[BlackElo "2476"]
[Annotator "RC"]
[PlyCount "98"]
[EventDate "2022.07.01"]
[EventType "tourn"]
[EventCountry "CZE"]
[SourceTitle "playchess.com"]
[Source "ChessBase"]
[SourceQuality "1"]
[TimeControl "40/5400+30:1800+30"]

1. e4 {[%emt 0:00:12]} e6 {[%emt 0:00:06]} 2. d4 {[%emt 0:01:26]} d5 {[%emt 0:00:05]} 3. Nd2 {[%emt 0:02:00]} c5 {[%emt 0:00:09]} 4. exd5 {[%emt 0:00:22]} exd5 {[%emt 0:00:06]} 5. dxc5 {[%emt 0:02:56]} Bxc5 {[%emt 0:00:08]} 6. Ngf3 {[%emt 0:01:31]} Nf6 {[%emt 0:00:51]} 7. Nb3 {[%emt 0:02:50]} Bb6 {[%emt 0:00:11]} 8. Bb5+ {[%emt 0:03:48]} Bd7 {[%emt 0:02:42]} 9. Bxd7+ {[%emt 0:06:32]} Nbxd7 {[%emt 0:00:05]} 10. O-O {[%emt 0:01:06]} O-O {[%emt 0:00:05]} 11. Bg5 {[%emt 0:03:04]} Qc7 {[%emt 0:00:26]} 12. c3 {[%emt 0:06:33]} Rfe8 {[%emt 0:00:29]} 13. Nfd4 {[%emt 0:04:30]} Ne4 {[%emt 0:00:29]} 14. Bh4 {[%emt 0:01:38]} Ne5 {[%emt 0:03:23]} 15. f3 {[%emt 0:08:17]} Nd6 {[%emt 0:00:26]} 16. Bf2 {[%emt 0:02:35]} Nec4 {[%emt 0:02:07]} 17. Qc2 {[%emt 0:04:34]} Ne3 {[%emt 0:00:15]} 18. Bxe3 {[%emt 0:00:12]} Rxe3 {[%emt 0:00:05]} 19. Rfe1 {[%emt 0:05:09]} Rae8 {[%emt 0:00:16]} 20. Qf2 {[%emt 0:03:10]} Nc4 {[%emt 0:08:16]} 21. Rxe3 {[%emt 0:01:40]} Rxe3 {[%emt 0:00:25]} 22. Re1 {[%emt 0:02:02]} Rxe1+ {[%emt 0:01:04]} 23. Qxe1 {[%emt 0:00:05]} Qe5 {[%emt 0:01:25]} 24. Qxe5 {[%emt 0:00:52]} Nxe5 {[%emt 0:00:05]} 25. Nc1 {[%emt 0:00:46]} Nc4 {[%emt 0:03:08]} 26. Nd3 {[%emt 0:04:14]} Ne3 {[%emt 0:01:48]} 27. Nb4 {[%emt 0:07:33]} a5 {[%emt 0:02:02]} 28. Kf2 {[%emt 0:00:05]} Nd1+ {[%emt 0:00:32]} 29. Ke2 {[%emt 0:00:18]} Nxc3+ {[%emt 0:00:46]} 30. bxc3 {[%emt 0:00:04]} axb4 {[%emt 0:00:04]} 31. Nb5 {[%emt 0:01:30]} bxc3 {[%emt 0:04:39]} 32. Nxc3 {[%emt 0:01:26]} d4 {[%emt 0:00:27]} 33. Nb5 {[%emt 0:00:19]} Kf8 {[%emt 0:02:16]} 34. Nd6 {[%emt 0:04:14]} Bc7 {[%emt 0:00:06]} 35. Nxb7 {[%emt 0:00:05]} Bxh2 {[%emt 0:00:05]} 36. Kd3 {[%emt 0:00:15]} Ke7 {[%emt 0:02:26]} 37. Kxd4 {[%emt 0:00:22]} Ke6 {[%emt 0:00:22]} 38. Nc5+ {[%emt 0:04:18]} Kf5 {[%emt 0:01:26]} 39. a4 {[%emt 0:00:08]} Bc7 {[%emt 0:00:51]} 40. Kd5 {[%emt 0:09:18]} Kf4 {[%emt 0:03:08]} 41. Nb7 {[%emt 0:30:12]} Kg3 {[%emt 0:36:16]} 42. Kc6 {[%emt 0:00:10]} Bb8 {[%emt 0:00:08]} 43. a5 {[%emt 0:00:04]} Kxg2 {[%emt 0:04:23]} 44. a6 {[%emt 0:03:04]} h5 {[%emt 0:03:56]} 45. Nd6 {[%emt 0:00:18]} Ba7 {[%emt 0:32:20]} 46. Nc8 {[%emt 0:00:12]} Bf2 {[%emt 0:02:34]} 47. Nb6 {[%emt 0:00:05]} h4 {[%emt 0:00:03]} 48. a7 {[%emt 0:00:05]} h3 {[%emt 0:00:03]} 49. a8=Q {[%emt 0:00:04]} h2 {[%emt 0:00:04]} 1/2-1/2

[Event "Ceske Budejovice GM 2022"]
[Site "Ceske Budejovice"]
[Date "2022.07.09"]
[Round "9.1"]
[White "Vykouk, Jan"]
[Black "Sahidi, Samir"]
[Result "1/2-1/2"]
[ECO "C50"]
[WhiteElo "2476"]
[BlackElo "2462"]
[Annotator "RC"]
[PlyCount "224"]
[EventDate "2022.07.01"]
[EventType "tourn"]
[EventCountry "CZE"]
[SourceTitle "playchess.com"]
[Source "ChessBase"]
[SourceQuality "1"]
[TimeControl "40/5400+30:1800+30"]

1. e4 {[%emt 0:01:15]} e5 {[%emt 0:00:21]} 2. Nf3 {[%emt 0:00:05]} Nc6 {[%emt 0:00:05]} 3. Bc4 {[%emt 0:00:04]} Bc5 {[%emt 0:00:26]} 4. d3 {[%emt 0:00:05]} Nf6 {[%emt 0:00:47]} 5. Nc3 {[%emt 0:00:05]} h6 {[%emt 0:02:25]} 6. O-O {[%emt 0:00:51]} d6 {[%emt 0:01:59]} 7. Na4 {[%emt 0:00:29]} a6 {[%emt 0:02:39]} 8. Nxc5 {[%emt 0:00:24]} dxc5 {[%emt 0:00:11]} 9. Be3 {[%emt 0:08:16]} Qd6 {[%emt 0:06:51]} 10. Nd2 {[%emt 0:02:38]} g5 {[%emt 0:01:49]} 11. a4 {[%emt 0:03:56]} b6 {[%emt 0:04:17]} 12. Ba2 {[%emt 0:01:10]} Be6 {[%emt 0:04:04]} 13. Nc4 {[%emt 0:17:08]} Qe7 {[%emt 0:01:19]} 14. Bd2 {[%emt 0:00:51]} O-O-O {[%emt 0:06:29]} 15. Ne3 {[%emt 0:02:39]} Bxa2 {[%emt 0:03:01]} 16. Rxa2 {[%emt 0:00:04]} Qe6 {[%emt 0:01:33]} 17. Ra1 {[%emt 0:01:17]} Rd7 {[%emt 0:05:36]} 18. Qe1 {[%emt 0:13:29]} Rhd8 {[%emt 0:05:19]} 19. b4 {[%emt 0:10:41]} cxb4 {[%emt 0:09:38]} 20. Bxb4 {[%emt 0:00:13]} Nh5 {[%emt 0:01:18]} 21. Bc3 {[%emt 0:02:54]} Nf4 {[%emt 0:01:47]} 22. g3 {[%emt 0:01:08]} Ng6 {[%emt 0:02:14]} 23. Qe2 {[%emt 0:00:23]} Nge7 {[%emt 0:05:18]} 24. Qg4 {[%emt 0:04:35]} Qg6 {[%emt 0:00:33]} 25. Nc4 {[%emt 0:01:14]} h5 {[%emt 0:02:22]} 26. Qf3 {[%emt 0:00:08]} f6 {[%emt 0:01:30]} 27. Rab1 {[%emt 0:01:55]} Kb7 {[%emt 0:03:40]} 28. Rb2 {[%emt 0:02:32]} Nc8 {[%emt 0:00:11]} 29. Rfb1 {[%emt 0:00:23]} Ka8 {[%emt 0:10:30]} 30. Qe3 {[%emt 0:04:20]} Qe8 {[%emt 0:05:25]} 31. Qf3 {[%emt 0:02:01]} Qf7 {[%emt 0:00:54]} 32. Qe2 {[%emt 0:02:09]} g4 {[%emt 0:02:14]} 33. Ne3 {[%emt 0:00:16]} Qe6 {[%emt 0:02:02]} 34. f3 {[%emt 0:05:19]} h4 {[%emt 0:02:00]} 35. fxg4 {[%emt 0:00:05]} hxg3 {[%emt 0:00:14]} 36. h3 {[%emt 0:00:12]} N8e7 {[%emt 0:01:50]} 37. Nf5 {[%emt 0:04:03]} Rh8 {[%emt 0:00:56]} 38. d4 {[%emt 0:06:15]} exd4 {[%emt 0:01:06]} 39. Qxa6+ {[%emt 0:00:05]} Na7 {[%emt 0:01:19]} 40. a5 {[%emt 0:00:14]} dxc3 {[%emt 0:01:03]} 41. axb6 {[%emt 0:30:14]} cxb6 {[%emt 0:06:37]} 42. Rxb6 {[%emt 0:00:00]} Qxe4 {[%emt 0:03:30]} 43. R6b4 {[%emt 0:00:00]} Qxc2 {[%emt 0:04:10]} 44. Nxg3 {[%emt 0:00:00]} Qd3 {[%emt 0:00:57]} 45. Qxd3 {[%emt 0:00:00]} Rxd3 {[%emt 0:00:07]} 46. Kf2 {[%emt 0:00:00]} Nec6 {[%emt 0:02:07]} 47. Re4 {[%emt 0:00:00]} Rxh3 {[%emt 0:02:42]} 48. Re8+ {[%emt 0:00:00]} Nd8 {[%emt 0:01:04]} 49. Ne4 {[%emt 0:00:00]} c2 {[%emt 0:00:50]} 50. Rc1 {[%emt 0:00:00]} Rh2+ {[%emt 0:00:18]} 51. Kg1 {[%emt 0:00:00]} Rd1+ {[%emt 0:07:44]} 52. Kxh2 {[%emt 0:00:00]} Rxc1 {[%emt 0:00:06]} 53. Rxd8+ {[%emt 0:00:00]} Kb7 {[%emt 0:00:06]} 54. Nc5+ {[%emt 0:00:00]} Kc7 {[%emt 0:00:29]} 55. Nb3 {[%emt 0:00:00]} Rb1 {[%emt 0:00:40]} 56. Rd2 {[%emt 0:00:00]} Rxb3 {[%emt 0:00:16]} 57. Rxc2+ {[%emt 0:00:00]} Nc6 {[%emt 0:01:55]} 58. g5 {[%emt 0:00:00]} f5 {[%emt 0:06:52]} 59. Rc5 {[%emt 0:00:00]} f4 {[%emt 0:00:35]} 60. g6 {[%emt 0:00:39]} Kd6 {[%emt 0:00:48]} 61. Rf5 {[%emt 0:01:18]} Rg3 {[%emt 0:01:02]} 62. Rxf4 {[%emt 0:00:16]} Rxg6 {[%emt 0:00:05]} 63. Rf3 {[%emt 0:00:56]} Ke5 {[%emt 0:00:37]} 64. Rg3 {[%emt 0:00:09]} Rf6 {[%emt 0:00:17]} 65. Kg2 {[%emt 0:00:13]} Ke4 {[%emt 0:00:14]} 66. Rg4+ {[%emt 0:00:39]} Ke3 {[%emt 0:00:15]} 67. Rg3+ {[%emt 0:00:04]} Ke2 {[%emt 0:00:17]} 68. Ra3 {[%emt 0:00:44]} Ne5 {[%emt 0:00:11]} 69. Kg3 {[%emt 0:00:28]} Nc4 {[%emt 0:01:20]} 70. Ra2+ {[%emt 0:00:19]} Kd3 {[%emt 0:00:08]} 71. Kg4 {[%emt 0:00:14]} Ke4 {[%emt 0:00:20]} 72. Re2+ {[%emt 0:01:17]} Kd5 {[%emt 0:00:24]} 73. Kg5 {[%emt 0:02:22]} Rf8 {[%emt 0:00:12]} 74. Ra2 {[%emt 0:00:33]} Ke6 {[%emt 0:00:12]} 75. Kg4 {[%emt 0:00:16]} Ne3+ {[%emt 0:00:20]} 76. Kg3 {[%emt 0:00:19]} Ke5 {[%emt 0:00:13]} 77. Ra5+ {[%emt 0:00:44]} Nd5 {[%emt 0:00:07]} 78. Kg2 {[%emt 0:01:57]} Rf4 {[%emt 0:00:54]} 79. Kg3 {[%emt 0:00:27]} Re4 {[%emt 0:00:13]} 80. Kf3 {[%emt 0:00:29]} Re3+ {[%emt 0:00:15]} 81. Kf2 {[%emt 0:01:14]} Rb3 {[%emt 0:00:08]} 82. Ra8 {[%emt 0:01:05]} Nf6 {[%emt 0:00:18]} 83. Ke2 {[%emt 0:00:22]} Rh3 {[%emt 0:00:36]} 84. Ra5+ {[%emt 0:01:16]} Kf4 {[%emt 0:01:04]} 85. Kd2 {[%emt 0:00:14]} Ne4+ {[%emt 0:00:08]} 86. Kc2 {[%emt 0:00:08]} Rc3+ {[%emt 0:00:17]} 87. Kb2 {[%emt 0:00:13]} Rc8 {[%emt 0:00:07]} 88. Ra7 {[%emt 0:01:13]} Ke5 {[%emt 0:00:21]} 89. Rh7 {[%emt 0:01:00]} Kd5 {[%emt 0:00:17]} 90. Kb3 {[%emt 0:00:39]} Kc5 {[%emt 0:00:44]} 91. Rh5+ {[%emt 0:01:30]} Kd4 {[%emt 0:00:07]} 92. Rh4 {[%emt 0:00:27]} Rc7 {[%emt 0:00:26]} 93. Kb2 {[%emt 0:00:24]} Rg7 {[%emt 0:00:24]} 94. Kb3 {[%emt 0:00:38]} Rg2 {[%emt 0:00:06]} 95. Ka3 {[%emt 0:02:21]} Rc2 {[%emt 0:00:35]} 96. Kb3 {[%emt 0:00:12]} Re2 {[%emt 0:00:06]} 97. Kb4 {[%emt 0:02:47]} Rb2+ {[%emt 0:00:06]} 98. Ka5 {[%emt 0:00:04]} Kd5 {[%emt 0:00:22]} 99. Rh5+ {[%emt 0:00:27]} Kc6 {[%emt 0:00:25]} 100. Rh6+ {[%emt 0:00:56]} Nd6 {[%emt 0:00:07]} 101. Ka4 {[%emt 0:00:11]} Rb8 {[%emt 0:00:10]} 102. Ka3 {[%emt 0:00:25]} Rb6 {[%emt 0:01:31]} 103. Ka2 {[%emt 0:00:40]} Kc5 {[%emt 0:00:07]} 104. Rh5+ {[%emt 0:00:44]} Kb4 {[%emt 0:00:42]} 105. Kb2 {[%emt 0:00:22]} Nc4+ {[%emt 0:00:11]} 106. Kc2 {[%emt 0:00:21]} Rd6 {[%emt 0:00:04]} 107. Rh8 {[%emt 0:01:22]} Ne3+ {[%emt 0:00:26]} 108. Kb2 {[%emt 0:00:42]} Rd2+ {[%emt 0:00:16]} 109. Kc1 {[%emt 0:00:28]} Re2 {[%emt 0:00:22]} 110. Rc8 {[%emt 0:01:15]} Kb3 {[%emt 0:00:10]} 111. Rb8+ {[%emt 0:00:36]} Kc3 {[%emt 0:00:02]} 112. Rc8+ {[%emt 0:00:07]} Nc4 {[%emt 0:00:01]} 1/2-1/2

[Event "Ceske Budejovice GM 2022"]
[Site "Ceske Budejovice"]
[Date "2022.07.09"]
[Round "9.2"]
[White "Hollan, Martin"]
[Black "Morgunov, Marc"]
[Result "0-1"]
[ECO "A05"]
[WhiteElo "2399"]
[BlackElo "2376"]
[Annotator "RC"]
[PlyCount "74"]
[EventDate "2022.07.01"]
[EventType "tourn"]
[EventCountry "CZE"]
[SourceTitle "playchess.com"]
[Source "ChessBase"]
[SourceQuality "1"]
[TimeControl "40/5400+30:1800+30"]

1. Nf3 {[%emt 0:00:01]} Nf6 {[%emt 0:00:27]} 2. g3 {[%emt 0:00:07]} g6 {[%emt 0:00:21]} 3. b3 {[%emt 0:00:07]} b6 {[%emt 0:02:30]} 4. Bg2 {[%emt 0:00:47]} Bb7 {[%emt 0:00:22]} 5. Bb2 {[%emt 0:00:10]} Bg7 {[%emt 0:00:07]} 6. O-O {[%emt 0:00:33]} O-O {[%emt 0:01:23]} 7. c4 {[%emt 0:00:21]} e6 {[%emt 0:05:04]} 8. d4 {[%emt 0:01:09]} d6 {[%emt 0:07:40]} 9. Nc3 {[%emt 0:01:34]} Nbd7 {[%emt 0:02:31]} 10. e3 {[%emt 0:01:56]} a6 {[%emt 0:05:44]} 11. Qe2 {[%emt 0:02:19]} c5 {[%emt 0:05:44]} 12. Rfd1 {[%emt 0:01:34]} Qc7 {[%emt 0:00:28]} 13. Rac1 {[%emt 0:03:48]} Rac8 {[%emt 0:05:47]} 14. Ne1 {[%emt 0:17:26]} Bxg2 {[%emt 0:08:05]} 15. Nxg2 {[%emt 0:00:14]} Rfd8 {[%emt 0:01:48]} 16. Rd2 {[%emt 0:10:44]} h5 {[%emt 0:09:52]} 17. Rcd1 {[%emt 0:02:25]} cxd4 {[%emt 0:08:14]} 18. exd4 {[%emt 0:04:49]} Bh6 {[%emt 0:02:14]} 19. Ne3 {[%emt 0:02:06]} Qb7 {[%emt 0:03:36]} 20. h3 {[%emt 0:09:15]} h4 {[%emt 0:06:08]} 21. Rd3 {[%emt 0:06:54]} hxg3 {[%emt 0:02:42]} 22. fxg3 {[%emt 0:00:01]} b5 {[%emt 0:00:13]} 23. Rf1 {[%emt 0:05:32]} Bxe3+ {[%emt 0:07:40]} 24. Rxe3 {[%emt 0:00:15]} bxc4 {[%emt 0:00:06]} 25. bxc4 {[%emt 0:02:15]} Qb4 {[%emt 0:00:24]} 26. g4 {[%emt 0:05:41]} Qxc4 {[%emt 0:00:30]} 27. Qf2 {[%emt 0:00:33]} Rf8 {[%emt 0:03:58]} 28. Rf3 {[%emt 0:01:31]} e5 {[%emt 0:00:50]} 29. dxe5 {[%emt 0:04:22]} dxe5 {[%emt 0:00:55]} 30. g5 {[%emt 0:06:33]} Nh5 {[%emt 0:01:22]} 31. Rd1 {[%emt 0:00:22]} Nc5 {[%emt 0:03:53]} 32. Nd5 {[%emt 0:02:45]} Ne4 {[%emt 0:02:14]} 33. Ne7+ {[%emt 0:05:39]} Kh7 {[%emt 0:00:04]} 34. Qf1 {[%emt 0:00:04]} Qc5+ {[%emt 0:00:18]} 35. Rd4 {[%emt 0:01:11]} Nxg5 {[%emt 0:01:19]} 36. Nxc8 {[%emt 0:01:02]} Nxf3+ {[%emt 0:00:07]} 37. Qxf3 {[%emt 0:00:06]} exd4 {[%emt 0:00:18]} 0-1